Cogmind - Beta 13 @@@ ROGUE MODE // 2024.04.03 @ 05:15:38 Player: inuktitut Result: Destroyed by L-31 Rogue with Katana Performance ------------- Evolutions (1) 500 Regions Visited (2) 400 Robots Destroyed (12) 60 Value Destroyed (353) 353 Prototype IDs (0) 0 Alien Tech Used (0) 0 Bonus (0) 0 TOTAL SCORE: 1313 Bonus ------- None Cogmind --------- Core Integrity 0/400 Matter 152/300 Energy 100/100 System Corruption 2% Temperature Cool (6) Movement Core (350) Ox6 Location -9/Materials Parts ------- > --- POWER (1) -------- (None) > --- PROPULSION (3) --- (None) > --- UTILITY (3) ------ Large Storage Unit > --- WEAPON (2) ------- (None) > --- INVENTORY (15) --- Hover Unit Heat Sink Large Storage Unit Light Assault Rifle Light Assault Rifle Light Assault Rifle Light Assault Rifle Light Assault Rifle Light Assault Rifle Datajack Peak State ------------ > --- POWER ------------ Light Ion Engine > --- PROPULSION ------- Aluminum Leg Aluminum Leg > --- UTILITY ---------- Large Storage Unit ECM Suite > --- WEAPON ----------- Light Assault Rifle Rocket Launcher > --- INVENTORY -------- Hover Unit Heat Sink Large Storage Unit Light Assault Rifle Light Assault Rifle Light Assault Rifle Light Assault Rifle Light Assault Rifle Light Assault Rifle Datajack [Rating: 9] Favorites ----------- Power Light Ion Engine Engine Light Ion Engine Propulsion Aluminum Leg Leg Aluminum Leg Wheel Wheel Hover Unit Hover Unit Utility Large Storage Unit Device ECM Suite Storage Large Storage Unit Weapon Light Assault Rifle Energy Gun EM Pulse Gun Ballistic Gun Light Assault Rifle Launcher Rocket Launcher Build | -11 -10 -9 ------- Run | Yrd Mat Mat Slots Evolved 2 | . . 2 Power . | . . . Propulsion 1 | . . 1 Utility 1 | . . 1 Weapon . | . . . Parts Attached 22 | 6 11 5 Power 3 | 1 1 1 Engine 3 | 1 1 1 Core . | . . . Reactor . | . . . Propulsion 9 | 2 6 1 Treads . | . . . Leg 5 | . 5 . Wheel 3 | 2 . 1 Hover 1 | . 1 . Flight . | . . . Utility 4 | . 4 . Device 1 | . 1 . Storage 3 | . 3 . Processor . | . . . Hackware . | . . . Protection . | . . . Artifact . | . . . Weapon 6 | 3 . 3 Energy Gun 2 | 2 . . Energy Cannon . | . . . Ballistic Gun 3 | 1 . 2 Ballistic Cannon . | . . . Launcher 1 | . . 1 Special Weapon . | . . . Impact Weapon . | . . . Slashing Weapon . | . . . Piercing Weapon . | . . . Special Melee Weapon . | . . . Unidentified Prototypes . | . . . Parts Lost 12 | . 4 8 Power 3 | . 1 2 Propulsion 5 | . 2 3 Utility 1 | . . 1 Weapon 3 | . 1 2 Highest Loss Streak 4 | . 3 4 To Critical Strikes . | . . . Average Slot Usage (%) 76 | . 84 65 Engine 9 | . 10 9 Leg 17 | . 18 15 Wheel 5 | . 8 . Device 6 | . 5 7 Storage 17 | . 21 11 Energy Gun 2 | . 3 . Ballistic Gun 13 | . 14 12 Launcher 3 | . . 8 Naked Turns . | . . . Heaviest Build 46 | 6 46 30 Greatest Support 20 | 20 20 20 Greatest Overweight (x) 9 | . 2 9 Average Overweight (x) 1 | . 1 1 Largest Inventory Capacity 15 | 5 15 15 Average Capacity 14 | 5 14 15 Most Carried 11 | 5 9 11 Average Carried 5 | 2 3 9 Final Capacity 15 | 5 15 15 Final Carried 10 | 5 4 10 Class Distribution -------------------- 100% | Mutant Dominant Class ---------------- Mutant | -10/Materials Mutant | -9/Materials Resources | -11 -10 -9 ----------- Run | Yrd Mat Mat Matter Collected 401 | 264 137 . Remotely . | . . . Salvage Created 487 | 42 322 123 Parts 22 | 3 14 5 Haulers Intercepted . | . . . Recyclers Shooed . | . . . Parts Field Recycled . | . . . Retrieved Matter . | . . . Parts Self-Destructed . | . . . Prevented . | . . . Kills | -11 -10 -9 ------- Run | Yrd Mat Mat Combat Hostiles Destroyed 8 | 1 5 2 Guns 7 | 1 5 1 AOE 1 | . . 1 Classes Destroyed 5 | 1 2 2 Recycler 2 | . 1 1 Operator 1 | . . 1 Watcher 1 | . 1 . Grunt 7 | 1 5 1 Sentry 1 | . . 1 Best Kill Streak 3 | 1 2 3 Combat Bots Only 2 | 1 2 2 Max Kills in Single Turn 2 | 1 1 2 Gunslinging . | . . . Exploded 1 | . . 1 Melee . | . . . Uniques/NPCs Destroyed . | . . . Combat | -11 -10 -9 -------- Run | Yrd Mat Mat Hostile Shots Fired 117 | 4 61 52 Missed 27 | 1 15 11 Damage Taken 1484 | 31 589 864 Core 615 | 10 188 417 Absorbed by Shields . | . . . Core Remaining (%) 58 | 96 20 . Volleys Fired 75 | 4 53 18 Largest 2 | 2 2 2 Hottest 60 | 60 60 53 Shots Fired 105 | 8 69 28 Gun 95 | 8 69 18 Cannon . | . . . Launcher 10 | . . 10 Special . | . . . Kinetic 75 | 4 53 18 Thermal . | . . . Explosive 10 | . . 10 Electromagnetic 20 | 4 16 . Robot Hit Streak 12 | 2 9 12 Robot Miss Streak 3 | 3 3 1 Penetration Max . | . . . Secondary Targets 1 | . 1 . Max Gunslinging Chain 1 | . 1 . Shots Hit Robots 70 | 4 45 21 Core Hits 30 | 2 16 12 Critical Kills . | . . . Critical Parts Destroyed . | . . . Critical Strikes 1 | . 1 . Corrupt 1 | . 1 . Melee Attacks . | . . . Impact . | . . . Slashing . | . . . Piercing . | . . . Sneak Attacks . | . . . Combat Hostiles . | . . . Follow-up Attacks . | . . . Damage Inflicted 913 | 40 440 433 Guns 596 | 40 440 116 Cannons . | . . . Explosions 317 | . . 317 Melee . | . . . Ramming . | . . . Kinetic 404 | 28 260 116 Thermal . | . . . Explosive 317 | . . 317 Electromagnetic 192 | 12 180 . Impact . | . . . Slashing . | . . . Piercing . | . . . Highest Corruption 2 | . . 2 Average Corruption 1 | . . 1 Corruption Purged . | . . . Corruption Blocked . | . . . Effects 3 | . . 3 Matter Fused 1 | . . 1 Heat Flow Errors 1 | . . 1 Energy Discharges 1 | . . 1 Overload Shots . | . . . Overflow Damage 35 | . . 35 Projectiles . | . . . Explosions 35 | . . 35 Melee . | . . . Knockbacks . | . . . Impact . | . . . Kinetic . | . . . Secondary . | . . . Self-Inflicted Damage 179 | . . 179 Shots 8 | . . 8 Rammed . | . . . Targets Rammed 1 | . 1 . Kicked 1 | . 1 . Crushed . | . . . Highest Temperature 101 | 58 88 101 Average Temperature 34 | 38 37 21 Received Heat Transfer 624 | 18 384 222 Siege Activations . | . . . Robots Corrupted . | . . . Combat Hostiles . | . . . Parts Fried . | . . . Impact Corruptions . | . . . Robots Melted . | . . . Combat Hostiles . | . . . Parts Melted . | . . . Heat Transferred . | . . . Parts Sabotaged . | . . . Parts Stolen . | . . . Parts Stripped . | . . . Power Chain Reactions . | . . . Alert | -11 -10 -9 ------- Run | Yrd Mat Mat Peak Influence 113 | 20 113 89 Initial 13 | . 13 1 Average 25 | 3 39 9 Maximum Alert Level . | . . . Low Security (%) 100 | 100 100 100 Level 1 . | . . . Level 2 . | . . . Level 3 . | . . . Level 4 . | . . . Level 5 . | . . . High Security . | . . . Max Security . | . . . Squads Dispatched 3 | . 2 1 Investigation 1 | . 1 . Extermination . | . . . Reinforcement 2 | . 1 1 Assault . | . . . Garrison . | . . . Intercept . | . . . Searches Triggered . | . . . Construction Impeded . | . . . Haulers Reinforced . | . . . Active Scanning Responses . | . . . Cargo Convoy Interrupts . | . . . Stealth | -11 -10 -9 --------- Run | Yrd Mat Mat Distress Signals . | . . . Communications Jammed . | . . . Distress Signals . | . . . Times Spotted 15 | 1 10 4 Peak Tracking Total 4 | 1 4 3 Tactical Retreats 1 | . 1 . Traps | -11 -10 -9 ------- Run | Yrd Mat Mat Traps Triggered 3 | . 1 2 Indirectly . | . . . Trap Hack Attempts . | . . . Triggered . | . . . Disarmed . | . . . Reprogrammed . | . . . Reused . | . . . Traps Extracted . | . . . Installed . | . . . Triggered . | . . . Machines | -11 -10 -9 ---------- Run | Yrd Mat Mat Machines Disabled . | . . . Max in Single Turn . | . . . Machines Repaired . | . . . Machines Dismantled . | . . . Machines Sabotaged . | . . . Overloaded Fab Kills . | . . . Hacking | -11 -10 -9 --------- Run | Yrd Mat Mat Machines Accessed 2 | . 2 . Terminals 1 | . 1 . Fabricators . | . . . Repair Stations . | . . . Recycling Units 1 | . 1 . Scanalyzers . | . . . Garrison Access . | . . . Total Hacks 10 | . 10 . Successful 10 | . 10 . Failed . | . . . Catastrophic . | . . . Database Lockouts . | . . . Manual . | . . . Terminals 6 | . 6 . Fabricators . | . . . Repair Stations . | . . . Recycling Units 4 | . 4 . Scanalyzers . | . . . Garrison Access . | . . . Terminal Hacks 6 | . 6 . Record 3 | . 3 . Alert Level 2 | . 2 . Locate Traps 1 | . 1 . Fabricator Hacks . | . . . Repair Station Hacks . | . . . Recycling Unit Hacks 4 | . 4 . Recycle Component 3 | . 3 . Process 1 | . 1 . Scanalyzer . | . . . Garrison Access Hacks . | . . . Unauthorized Hacks . | . . . Terminals . | . . . Fabricators . | . . . Repair Stations . | . . . Recycling Units . | . . . Scanalyzers . | . . . Garrison Access . | . . . Data Cores Recovered . | . . . Used . | . . . Hacking Detections 1 | . 1 . Full Trace Events . | . . . Feedback Events . | . . . Feedback Blocked . | . . . Robot Schematics Acquired . | . . . Robots Built . | . . . Authchips . | . . . Time . | . . . Total Robot Build Rating . | . . . Part Schematics Acquired . | . . . Parts Built . | . . . Authchips . | . . . Time . | . . . Total Part Build Rating . | . . . Parts Repaired . | . . . Time . | . . . Parts Recycled 3 | . 3 . Recycled Matter 401 | . 401 . Retrieved Matter . | . . . Retrieved Components . | . . . Parts Scanalyzed . | . . . Part Schematics Acquired . | . . . Parts Damaged . | . . . Bothacking | -11 -10 -9 ------------ Run | Yrd Mat Mat Used RIF Installer . | . . . Robots Hacked . | . . . Non-combat . | . . . Combat . | . . . Robot Hacks Applied . | . . . Relay Couplers Released . | . . . Fabnet Peak Effective % . | . . . Robots Rewired . | . . . Allies Hacked . | . . . Hacks Repelled . | . . . Allies | -11 -10 -9 -------- Run | Yrd Mat Mat Total Allies . | . . . Largest Group . | . . . Highest-Rated Group . | . . . Highest-Rated Ally . | . . . Total Orders . | . . . Ally Attacks . | . . . Total Damage . | . . . Kills . | . . . Allies Corrupted . | . . . Allies Melted . | . . . Intel | -11 -10 -9 ------- Run | Yrd Mat Mat Robot Analysis Total . | . . . Derelict Logs Recovered . | . . . Drone Launches . | . . . Drone Recoveries . | . . . Exploration | -11 -10 -9 ------------- Run | Yrd Mat Mat Turns Passed 1214 | 79 670 465 Spaces Moved 602 | 72 318 212 Core 31 | 20 . 11 Treads . | . . . Legs 356 | . 189 167 Wheels 215 | 52 129 34 Hover . | . . . Flight . | . . . Fastest Speed 50 | 50 80 115 Average Speed 163 | 71 165 192 Slowest Speed 500 | 80 260 500 Overloaded Moves . | . . . Propulsion Burnouts . | . . . Robots Hopped . | . . . Cave-ins Triggered . | . . . Exploration Rate (%) 23 | 6 52 13 Regions Visited 2 Branch Regions . Pre-discovered Areas . | . . . Known Exits Taken . | . . . Unknown Exits Taken 2 | 1 1 . Scrap Searched . | . . . Spaces Dug . | . . . Terrain Destroyed 62 | . . 62 Melee . | . . . Projectile . | . . . AOE 62 | . . 62 Terrain Rammed . | . . . Walls Destroyed . | . . . Machines Disabled . | . . . Actions | -11 -10 -9 --------- Run | Yrd Mat Mat Total 741 | 92 405 244 Wait . | . . . Move 600 | 71 317 212 Hop . | . . . Pick Up 31 | 10 12 9 Fast Attach 2 | . 2 . Attach 16 | 6 7 3 Detach 5 | 1 4 . Swap 4 | . 2 2 Drop 7 | . 7 . Fire 75 | 4 53 18 Melee . | . . . Ram . | . . . Kick 1 | . 1 . Crush . | . . . Escape Stasis . | . . . Rewire . | . . . Trap . | . . . Miscellaneous . | . . . Route ------- -11/Scrapyard -10/Materials (discovered 2 exits: [*Mat] / [*Min]) -9/Materials History --------- Turn | Location | Event 2 | -11/Scrapyard | Met Revision 17 52 | -11/Scrapyard | Discovered new exit (range 8) 80 | -11/Scrapyard | Entered Materials 137 | -10/Materials | Discovered new exit (range 7) 303 | -10/Materials | Core integrity fell below 50% 309 | -10/Materials | Build established: Mutant 343 | -10/Materials | Lost 3 parts (2n1w) 674 | -10/Materials | Discovered new exit (range 8) 750 | -10/Materials | Entered another Materials area 750 | -9/Materials | Evolved 2 slots: Propulsion x1, Utility x1 1127 | -9/Materials | Lost 4 parts (1p2n1u) 1201 | -9/Materials | Core integrity fell below 50% 1211 | -9/Materials | Core integrity fell below 20% 1215 | -9/Materials | Destroyed by L-31 Rogue with Katana Last Messages --------------- U-05 Engineer lays Concrete. U-05 Engineer builds a Door. The unstable cave ceiling collapses. Acquired Com. Wheel. U-05 Engineer lays Concrete. U-05 Engineer builds a Wall. The unstable cave ceiling collapses. U-05 Engineer lays Concrete. U-05 Engineer builds a Wall. The unstable cave ceiling collapses. U-05 Engineer lays Concrete. System corrupted: Energy discharge (-50). U-05 Engineer lays Concrete. Lgt. Ion Engine destroyed. Rocket Launcher destroyed. Destroyed Rocket Launcher. Com. Wheel destroyed. Lgt. Assault Rifle destroyed. G-34 Mercenary destroyed. [Achievement: First Step to Greatness] Map ----- +----------------------------------------------------+ | ????????????????????????????? | | ????????????????????????????? | | ????????????????????????????? | | ????????????????????????????? | | ????????????????????????????? | | ????????????????????????????? | | ????????????????????????????? | | ????????????????????????????? | | ????????????????????????????? | | ????????????????????????????? | | ####????????????????????????? | | #??????????????????+#????? | | """#??????##+#???????? #????? | | """#??????# ???????# #????? | | """#??????# "" ?????? #????? | | """#??????# "T ??????# #????? | | #??????# "" ??????# #????? | | ##+###????? ####?## ##???? | | #?############## #???? | | #?# = + #???? | | #?# ##### #???? | | #?# # # #####? | | ### # # g% #? | | ## ## + ! ## | | ## ### ### ### ! # | | # ### !% # # ## @! # | | # % ##### l ! # | | # # ! # ###### ! # | | # # ## !### | | # #####?? | | + #?????? | | # #?????? | | ###+############ #?????? | | #! ########### ######## | | # ## # # # | | # #??""""" + + """ # | | # """ #? """"" # # """ # | | ## """ #? """"" # # """ # | | ?#^""" #? """"" ##### # | | ?# #? """"" #???# """ # | | ?# """ #? """"" #???# """ # | | ?# """ #? """"" #???# """ # | | ?# """ #? #???# # | | ?# ###########???######## | | ?######?????????????????????? | | | | | | | | | | | +----------------------------------------------------+ Best States ------------- Heat Dissipation 28 Energy Generation 10 Energy Capacity 125 Matter Stores 300 Matter Capacity 300 Sight Range 16 Terrain Scan Density 10 ECM Strength 1 Evasion (%) 50 Item Schematics ----------------- None Robot Schematics ------------------ None Fabricated ------------ Nothing Alien Tech Used ----------------- None Achievements -------------- Crack Shot First Step to Greatness Uninvited Guest Challenges ------------ None Game ------ Seed GyrokineticAbsorptionTreads Manual? 0 Play Time 00:25:00 Cumulative 0.3 hours Start 2024.04.03 @ 04:46:13 End 2024.04.03 @ 05:15:38 Sessions 1 Manual Loads 0 Difficulty Rogue Special Mode None Game No. 1 Rogue 1 Adventurer 0 Explorer 0 Win Type - Total 0 Types 0/0/0/0/0/0/0/0/0 Lore% 0 Gallery% 1 Achievement% 1 Wizard Run 0 Options --------- Layout 1 ASCII 0 Keyboard 0 Movement Mouse Keybinds 0 Fullscreen 2 Font 24/Smallcaps Map View 50x35 Zoom Use 0% Tactical HUD 0 Map Filters NONE Filters NONE Steam 1 RUN: 654b8834-f90d-4176-809b-644bbb5f9ff3